[Event "Live Chess"]
[Site "Chess.com"]
[Date "2024.06.02"]
[Round "-"]
[White "NAZRIZ1977"]
[Black "GerardATHart"]
[Result "1-0"]
[WhiteElo "2085"]
[BlackElo "1361"]
[TimeControl "300"]
[EndTime "6:36:10 PDT"]
[Termination "NAZRIZ1977 won by resignation"]

1. d4 {[%clk 0:04:56.5]} 1... f5 {[%clk 0:04:57.5]} 2. c4 {[%clk 0:04:52.4]}
2... Nf6 {[%clk 0:04:50.5]} 3. Nc3 {[%clk 0:04:51.7]} 3... g6 {[%clk 0:04:29.1]}
4. h4 {[%clk 0:04:48.4]} 4... Bg7 {[%clk 0:04:27.6]} 5. h5 {[%clk 0:04:47.7]}
5... g5 {[%clk 0:04:21.2]} 6. h6 {[%clk 0:04:46.6]} 6... Bf8 {[%clk 0:04:16.7]}
7. e3 {[%clk 0:04:41.8]} 7... g4 {[%clk 0:04:06.1]} 8. f3 {[%clk 0:04:34.5]}
8... e6 {[%clk 0:03:57.5]} 9. e4 {[%clk 0:04:31.7]} 9... Be7 {[%clk 0:03:55]}
10. e5 {[%clk 0:04:29.5]} 10... Ng8 {[%clk 0:03:52]} 11. fxg4 {[%clk 0:04:29]}
11... fxg4 {[%clk 0:03:46.1]} 12. Qxg4 {[%clk 0:04:27]} 12... Nc6 {[%clk
0:03:40.2]} 13. Qg7 {[%clk 0:04:19.4]} 1-0

[Event "Live Chess"]
[Site "Chess.com"]
[Date "2024.06.02"]
[Round "-"]
[White "bobby_jamesFischer86"]
[Black "imchessive"]
[Result "0-1"]
[WhiteElo "1641"]
[BlackElo "1594"]
[TimeControl "300"]
[EndTime "6:36:14 PDT"]
[Termination "imchessive won by checkmate"]

1. d4 {[%clk 0:04:57]} 1... g6 {[%clk 0:04:57.7]} 2. c4 {[%clk 0:04:55.7]} 2...
Bg7 {[%clk 0:04:57]} 3. Nc3 {[%clk 0:04:51.2]} 3... d6 {[%clk 0:04:56]} 4. e4
{[%clk 0:04:45.1]} 4... Nf6 {[%clk 0:04:52.6]} 5. Nf3 {[%clk 0:04:39.2]} 5...
O-O {[%clk 0:04:50]} 6. Be2 {[%clk 0:04:36.7]} 6... c5 {[%clk 0:04:46.5]} 7. d5
{[%clk 0:04:28]} 7... Nbd7 {[%clk 0:04:44.3]} 8. h3 {[%clk 0:04:24.7]} 8... Rb8
{[%clk 0:04:29.7]} 9. O-O {[%clk 0:04:21.7]} 9... a6 {[%clk 0:04:25.6]} 10. Be3
{[%clk 0:04:11.4]} 10... Nh5 {[%clk 0:04:05.3]} 11. Qd2 {[%clk 0:04:08]} 11...
e5 {[%clk 0:04:00.2]} 12. Bh6 {[%clk 0:04:04.9]} 12... Ndf6 {[%clk 0:03:40.3]}
13. Bxg7 {[%clk 0:03:53.3]} 13... Kxg7 {[%clk 0:03:34.8]} 14. Bd3 {[%clk
0:03:39.9]} 14... Nf4 {[%clk 0:03:32.1]} 15. Ne2 {[%clk 0:03:37.9]} 15... N6h5
{[%clk 0:03:25.4]} 16. g4 {[%clk 0:03:32.1]} 16... Nxe2+ {[%clk 0:03:14.8]} 17.
Bxe2 {[%clk 0:03:27]} 17... Nf4 {[%clk 0:03:13.6]} 18. Kh2 {[%clk 0:03:24.9]}
18... Qd7 {[%clk 0:03:05.8]} 19. Ng1 {[%clk 0:03:19.8]} 19... Rh8 {[%clk
0:02:52.9]} 20. f3 {[%clk 0:02:59.6]} 20... h5 {[%clk 0:02:47.5]} 21. Kg3 {[%clk
0:02:58]} 21... h4+ {[%clk 0:02:32]} 22. Kh2 {[%clk 0:02:46.4]} 22... b5 {[%clk
0:02:29.3]} 23. b3 {[%clk 0:02:40.2]} 23... bxc4 {[%clk 0:02:24.6]} 24. bxc4
{[%clk 0:02:38.3]} 24... Qa4 {[%clk 0:02:21.8]} 25. Rab1 {[%clk 0:02:24.4]}
25... Bd7 {[%clk 0:02:20.2]} 26. Rfc1 {[%clk 0:02:06.1]} 26... Rb4 {[%clk
0:01:53.2]} 27. Rxb4 {[%clk 0:02:02.9]} 27... cxb4 {[%clk 0:01:47.7]} 28. Qc2
{[%clk 0:01:59.4]} 28... Qxc2 {[%clk 0:01:43.8]} 29. Rxc2 {[%clk 0:01:58]} 29...
Ba4 {[%clk 0:01:36.6]} 30. Rb2 {[%clk 0:01:57.2]} 30... a5 {[%clk 0:01:34.9]}
31. Bf1 {[%clk 0:01:48.6]} 31... Rc8 {[%clk 0:01:30.5]} 32. Ne2 {[%clk
0:01:42.1]} 32... Nd3 {[%clk 0:01:15.4]} 33. Rd2 {[%clk 0:01:29.9]} 33... Nc5
{[%clk 0:00:56.6]} 34. Nc1 {[%clk 0:01:24.1]} 34... b3 {[%clk 0:00:51.6]} 35.
axb3 {[%clk 0:01:22.7]} 35... Nxb3 {[%clk 0:00:45.1]} 36. Nxb3 {[%clk
0:01:10.3]} 36... Bxb3 {[%clk 0:00:45]} 37. c5 {[%clk 0:00:54.2]} 37... dxc5
{[%clk 0:00:43]} 38. d6 {[%clk 0:00:52.8]} 38... Rd8 {[%clk 0:00:37.1]} 39. d7
{[%clk 0:00:50.1]} 39... Be6 {[%clk 0:00:35.6]} 40. Bb5 {[%clk 0:00:48.6]} 40...
Kf8 {[%clk 0:00:28.8]} 41. Rc2 {[%clk 0:00:47.4]} 41... c4 {[%clk 0:00:27.7]}
42. Bxc4 {[%clk 0:00:45.2]} 42... Bxc4 {[%clk 0:00:25.9]} 43. Rxc4 {[%clk
0:00:44.3]} 43... Rxd7 {[%clk 0:00:25.8]} 44. Rc5 {[%clk 0:00:43.5]} 44... Ra7
{[%clk 0:00:25]} 45. Rxe5 {[%clk 0:00:40.6]} 45... a4 {[%clk 0:00:24.3]} 46. Rc5
{[%clk 0:00:40.2]} 46... a3 {[%clk 0:00:23.6]} 47. Rc1 {[%clk 0:00:39.9]} 47...
a2 {[%clk 0:00:23]} 48. Ra1 {[%clk 0:00:39.5]} 48... Ke7 {[%clk 0:00:22.6]} 49.
Kg1 {[%clk 0:00:38.1]} 49... Kd6 {[%clk 0:00:21.9]} 50. Kf2 {[%clk 0:00:37.6]}
50... Kc5 {[%clk 0:00:21.3]} 51. Ke3 {[%clk 0:00:35.8]} 51... Kb4 {[%clk
0:00:20.7]} 52. Kf4 {[%clk 0:00:35.1]} 52... Kb3 {[%clk 0:00:19.9]} 53. Kg5
{[%clk 0:00:31.6]} 53... Kb2 {[%clk 0:00:19.8]} 54. Rd1 {[%clk 0:00:29.6]} 54...
a1=Q {[%clk 0:00:19.2]} 55. Rxa1 {[%clk 0:00:28.9]} 55... Rxa1 {[%clk
0:00:18.4]} 56. Kxh4 {[%clk 0:00:28.1]} 56... Ra5 {[%clk 0:00:17.5]} 57. f4
{[%clk 0:00:26.6]} 57... Kc3 {[%clk 0:00:16.7]} 58. f5 {[%clk 0:00:25.8]} 58...
gxf5 {[%clk 0:00:15.7]} 59. exf5 {[%clk 0:00:25.1]} 59... Kd4 {[%clk 0:00:15.6]}
60. Kg5 {[%clk 0:00:24.4]} 60... Ra6 {[%clk 0:00:14.7]} 61. h4 {[%clk
0:00:23.3]} 61... Ke5 {[%clk 0:00:13.9]} 62. h5 {[%clk 0:00:22.4]} 62... Ra8
{[%clk 0:00:11.9]} 63. h6 {[%clk 0:00:19.3]} 63... Rh8 {[%clk 0:00:10.6]} 64.
Kh5 {[%clk 0:00:17.7]} 64... Kf6 {[%clk 0:00:10.3]} 65. g5+ {[%clk 0:00:16.9]}
65... Kxf5 {[%clk 0:00:09.7]} 66. g6 {[%clk 0:00:16]} 66... fxg6+ {[%clk
0:00:08.9]} 67. Kh4 {[%clk 0:00:14.8]} 67... Rxh6+ {[%clk 0:00:08.8]} 68. Kg3
{[%clk 0:00:14.4]} 68... Ke4 {[%clk 0:00:08.2]} 69. Kf2 {[%clk 0:00:13.1]} 69...
Rh4 {[%clk 0:00:07.7]} 70. Kg3 {[%clk 0:00:12.3]} 70... Rf4 {[%clk 0:00:06.3]}
71. Kg2 {[%clk 0:00:11.5]} 71... Ke3 {[%clk 0:00:06.2]} 72. Kg3 {[%clk
0:00:11.1]} 72... Rb4 {[%clk 0:00:05.6]} 73. Kh3 {[%clk 0:00:09.8]} 73... Rb2
{[%clk 0:00:05.5]} 74. Kh4 {[%clk 0:00:08.6]} 74... Rf2 {[%clk 0:00:05.4]} 75.
Kg5 {[%clk 0:00:07.9]} 75... Ke4 {[%clk 0:00:04.4]} 76. Kh6 {[%clk 0:00:07.5]}
76... g5 {[%clk 0:00:03.6]} 77. Kg7 {[%clk 0:00:07.1]} 77... g4 {[%clk
0:00:03.5]} 78. Kg6 {[%clk 0:00:06.7]} 78... g3 {[%clk 0:00:03.4]} 79. Kh7
{[%clk 0:00:06.3]} 79... g2 {[%clk 0:00:03.3]} 80. Kg7 {[%clk 0:00:06]} 80...
g1=Q+ {[%clk 0:00:03.2]} 81. Kh8 {[%clk 0:00:05]} 81... Rh2# {[%clk 0:00:03.1]}
0-1

[Event "Live Chess"]
[Site "Chess.com"]
[Date "2024.06.02"]
[Round "-"]
[White "lateforthesky"]
[Black "davigator"]
[Result "0-1"]
[WhiteElo "2065"]
[BlackElo "2358"]
[TimeControl "300"]
[EndTime "6:36:29 PDT"]
[Termination "davigator won on time"]

1. e4 {[%clk 0:04:56.4]} 1... c5 {[%clk 0:04:56.6]} 2. Nf3 {[%clk 0:04:54.3]}
2... Nc6 {[%clk 0:04:54.7]} 3. Bb5 {[%clk 0:04:52.1]} 3... g6 {[%clk 0:04:53]}
4. O-O {[%clk 0:04:41.7]} 4... Bg7 {[%clk 0:04:50.1]} 5. Re1 {[%clk 0:04:40.7]}
5... Nf6 {[%clk 0:04:48.6]} 6. e5 {[%clk 0:04:35.3]} 6... Nd5 {[%clk 0:04:47.2]}
7. Nc3 {[%clk 0:04:34.8]} 7... Nc7 {[%clk 0:04:46]} 8. Bxc6 {[%clk 0:04:33.6]}
8... dxc6 {[%clk 0:04:44.7]} 9. Ne4 {[%clk 0:04:26.8]} 9... Ne6 {[%clk
0:04:43.4]} 10. d3 {[%clk 0:04:16.3]} 10... b6 {[%clk 0:04:42]} 11. h3 {[%clk
0:04:04.3]} 11... h6 {[%clk 0:04:40.3]} 12. a4 {[%clk 0:03:59.4]} 12... a5
{[%clk 0:04:38]} 13. Ng3 {[%clk 0:03:51.4]} 13... Qd5 {[%clk 0:04:35.8]} 14. c4
{[%clk 0:03:31.7]} 14... Qd7 {[%clk 0:04:33.2]} 15. Be3 {[%clk 0:03:29.3]} 15...
Ba6 {[%clk 0:04:31.2]} 16. Qd2 {[%clk 0:03:25.3]} 16... Rd8 {[%clk 0:04:29.3]}
17. Rad1 {[%clk 0:03:24]} 17... Kf8 {[%clk 0:04:22.5]} 18. b3 {[%clk 0:03:16.7]}
18... Kg8 {[%clk 0:04:20.9]} 19. h4 {[%clk 0:02:55.8]} 19... Kh7 {[%clk
0:04:17.8]} 20. h5 {[%clk 0:02:53.8]} 20... Bc8 {[%clk 0:04:05.2]} 21. Nh2
{[%clk 0:02:40]} 21... Nd4 {[%clk 0:04:03.8]} 22. Bxd4 {[%clk 0:02:18.5]} 22...
Qxd4 {[%clk 0:03:56.3]} 23. hxg6+ {[%clk 0:02:16.2]} 23... fxg6 {[%clk 0:03:54]}
24. Re4 {[%clk 0:02:13.5]} 24... Qd7 {[%clk 0:03:51.9]} 25. d4 {[%clk
0:02:03.4]} 25... e6 {[%clk 0:03:37.3]} 26. Ne2 {[%clk 0:01:42.5]} 26... Qe7
{[%clk 0:03:32.1]} 27. Qc2 {[%clk 0:01:31.8]} 27... Bb7 {[%clk 0:03:25.1]} 28.
Ng4 {[%clk 0:01:21.1]} 28... cxd4 {[%clk 0:03:22.2]} 29. Rdxd4 {[%clk
0:01:11.5]} 29... c5 {[%clk 0:03:18.8]} 30. Rxd8 {[%clk 0:01:05]} 30... Rxd8
{[%clk 0:03:17.3]} 31. Re3 {[%clk 0:01:02.5]} 31... Qh4 {[%clk 0:03:06.9]} 32.
Rg3 {[%clk 0:00:51.3]} 32... Qh5 {[%clk 0:02:52.6]} 33. Nf4 {[%clk 0:00:39.8]}
33... Qf5 {[%clk 0:02:50.6]} 34. Qxf5 {[%clk 0:00:31]} 34... exf5 {[%clk
0:02:49]} 35. Nf6+ {[%clk 0:00:27]} 35... Bxf6 {[%clk 0:02:46.6]} 36. exf6
{[%clk 0:00:25.4]} 36... g5 {[%clk 0:02:45]} 37. Ne6 {[%clk 0:00:15.2]} 37...
Rd1+ {[%clk 0:02:43.4]} 38. Kh2 {[%clk 0:00:13.7]} 38... Kg6 {[%clk 0:02:42.9]}
39. Re3 {[%clk 0:00:06.1]} 39... Kxf6 {[%clk 0:02:41.1]} 40. Nf8 {[%clk
0:00:05.1]} 40... Rd6 {[%clk 0:02:33.3]} 41. Nh7+ {[%clk 0:00:02.1]} 41... Kg6
{[%clk 0:02:29]} 42. Re7 {[%clk 0:00:00.4]} 42... Bc8 {[%clk 0:02:23.2]} 0-1

[Event "Live Chess"]
[Site "Chess.com"]
[Date "2024.06.02"]
[Round "-"]
[White "TheSmoulderingMaster"]
[Black "Crowded_House"]
[Result "1/2-1/2"]
[WhiteElo "1762"]
[BlackElo "1627"]
[TimeControl "300"]
[EndTime "6:36:32 PDT"]
[Termination "Game drawn by agreement"]

1. e4 {[%clk 0:04:56.4]} 1... e6 {[%clk 0:04:57.3]} 2. d4 {[%clk 0:04:54.8]}
2... d5 {[%clk 0:04:57]} 3. Nc3 {[%clk 0:04:53.6]} 3... dxe4 {[%clk 0:04:55.5]}
4. Nxe4 {[%clk 0:04:52.9]} 4... Bd7 {[%clk 0:04:55.2]} 5. Nf3 {[%clk 0:04:51.8]}
5... Bc6 {[%clk 0:04:54.9]} 6. Bd3 {[%clk 0:04:50.1]} 6... Nf6 {[%clk
0:04:53.4]} 7. Bg5 {[%clk 0:04:47.6]} 7... Be7 {[%clk 0:04:51.6]} 8. Bxf6 {[%clk
0:04:46.7]} 8... Bxf6 {[%clk 0:04:50.1]} 9. O-O {[%clk 0:04:45.2]} 9... Nd7
{[%clk 0:04:48.7]} 10. c3 {[%clk 0:04:41.9]} 10... O-O {[%clk 0:04:46.8]} 11.
Qc2 {[%clk 0:04:36.5]} 11... h6 {[%clk 0:04:42.1]} 12. Rfe1 {[%clk 0:04:32.2]}
12... Nb6 {[%clk 0:04:38.7]} 13. Rad1 {[%clk 0:04:27.3]} 13... Nd5 {[%clk
0:04:37.6]} 14. c4 {[%clk 0:04:24.5]} 14... Nb4 {[%clk 0:04:35.5]} 15. Qc3
{[%clk 0:04:21.9]} 15... Nxd3 {[%clk 0:04:34.8]} 16. Qxd3 {[%clk 0:04:21.1]}
16... b6 {[%clk 0:04:25.2]} 17. d5 {[%clk 0:04:13.1]} 17... exd5 {[%clk
0:04:22.1]} 18. cxd5 {[%clk 0:04:11.2]} 18... Bb7 {[%clk 0:04:17.1]} 19. Rc1
{[%clk 0:04:05.1]} 19... Bxb2 {[%clk 0:04:09.5]} 20. Rc2 {[%clk 0:04:01.2]}
20... Bf6 {[%clk 0:04:06.5]} 21. Rec1 {[%clk 0:03:58.8]} 21... Rc8 {[%clk
0:03:59.2]} 22. d6 {[%clk 0:03:52.4]} 22... cxd6 {[%clk 0:03:48.9]} 23. Rxc8
{[%clk 0:03:48.6]} 23... Bxc8 {[%clk 0:03:48.1]} 24. Nxd6 {[%clk 0:03:46.7]}
24... Be6 {[%clk 0:03:37.5]} 25. Rd1 {[%clk 0:03:36.8]} 25... Be7 {[%clk
0:03:30.3]} 26. Ne4 {[%clk 0:03:33.7]} 26... Qxd3 {[%clk 0:03:28.9]} 27. Rxd3
{[%clk 0:03:32.1]} 27... Rd8 {[%clk 0:03:28.5]} 28. Rxd8+ {[%clk 0:03:29.2]}
28... Bxd8 {[%clk 0:03:27.8]} 29. Ne5 {[%clk 0:03:28.4]} 29... Bxa2 {[%clk
0:03:25.7]} 30. Nc6 {[%clk 0:03:26.4]} 30... Bc7 {[%clk 0:03:13.3]} 31. Nxa7
{[%clk 0:03:24]} 31... Bd5 {[%clk 0:03:05.8]} 32. Nc3 {[%clk 0:03:15.2]} 32...
Bb7 {[%clk 0:03:02]} 33. Nab5 {[%clk 0:03:13.5]} 33... Be5 {[%clk 0:02:57.6]}
34. Na4 {[%clk 0:03:08.6]} 34... Bc6 {[%clk 0:02:52.9]} 35. Nac3 {[%clk
0:03:07.3]} 35... Bxb5 {[%clk 0:02:51.5]} 36. Nxb5 {[%clk 0:03:06.3]} 36... Kf8
{[%clk 0:02:43.8]} 37. f3 {[%clk 0:03:05.4]} 37... Ke7 {[%clk 0:02:41.7]} 38.
Kf2 {[%clk 0:03:04.6]} 38... Kd7 {[%clk 0:02:40.4]} 39. Ke3 {[%clk 0:03:03.7]}
39... Kc6 {[%clk 0:02:39.3]} 40. Na3 {[%clk 0:03:02.1]} 40... b5 {[%clk
0:02:37.9]} 41. h3 {[%clk 0:02:59.8]} 41... b4 {[%clk 0:02:35]} 42. Nc4 {[%clk
0:02:59]} 42... Bf6 {[%clk 0:02:32.6]} 43. Kd3 {[%clk 0:02:57.7]} 43... Kc5
{[%clk 0:02:27]} 44. Ne3 {[%clk 0:02:52]} 44... g6 {[%clk 0:02:12.6]} 45. Kc2
{[%clk 0:02:49.7]} 45... Kd4 {[%clk 0:02:10]} 46. Nd1 {[%clk 0:02:46.7]} 46...
Kc4 {[%clk 0:02:05.5]} 47. Ne3+ {[%clk 0:02:41.9]} 47... Kb5 {[%clk 0:01:59.5]}
48. Ng4 {[%clk 0:02:40.8]} 48... Bg7 {[%clk 0:01:58]} 49. Kb3 {[%clk 0:02:39.2]}
49... Kc5 {[%clk 0:01:54]} 50. Nf2 {[%clk 0:02:37.1]} 50... Kd4 {[%clk
0:01:50.7]} 51. Kxb4 {[%clk 0:02:35.1]} 51... Ke3 {[%clk 0:01:50.3]} 52. Ng4+
{[%clk 0:02:32.7]} 52... Kf4 {[%clk 0:01:48.6]} 53. Kc4 {[%clk 0:02:29.3]} 53...
Kg3 {[%clk 0:01:47.8]} 54. Ne3 {[%clk 0:02:26.5]} 54... Bf8 {[%clk 0:01:45.4]}
55. Kd3 {[%clk 0:02:22.4]} 55... Bc5 {[%clk 0:01:42.2]} 56. Ng4 {[%clk
0:02:20.3]} 56... Kxg2 {[%clk 0:01:37.7]} 57. Ke4 {[%clk 0:02:14.4]} 57... h5
{[%clk 0:01:34.6]} 58. Ne5 {[%clk 0:02:13.1]} 58... f5+ {[%clk 0:01:27.4]} 59.
Kd3 {[%clk 0:02:08.4]} 59... g5 {[%clk 0:01:22.9]} 60. Ke2 {[%clk 0:02:05.2]}
60... Kxh3 {[%clk 0:01:18.9]} 61. Nf7 {[%clk 0:02:03.6]} 61... g4 {[%clk
0:01:17.6]} 62. fxg4 {[%clk 0:02:02.3]} 62... hxg4 {[%clk 0:01:15.6]} 63. Kf1
{[%clk 0:01:59.5]} 63... f4 {[%clk 0:01:06.6]} 64. Ng5+ {[%clk 0:01:57.5]} 64...
Kh4 {[%clk 0:01:04.2]} 65. Ne6 {[%clk 0:01:55.6]} 65... Ba7 {[%clk 0:01:02.9]}
66. Nxf4 {[%clk 0:01:52.1]} 66... g3 {[%clk 0:01:00.4]} 67. Kg2 {[%clk
0:01:50.6]} 67... Bb8 {[%clk 0:00:58.8]} 68. Ng6+ {[%clk 0:01:49.1]} 68... Kg4
{[%clk 0:00:55.7]} 69. Ne7 {[%clk 0:01:46.7]} 69... Ba7 {[%clk 0:00:49.7]}
1/2-1/2

[Event "Live Chess"]
[Site "Chess.com"]
[Date "2024.06.02"]
[Round "-"]
[White "f4nomore"]
[Black "Duke_of_Bebington"]
[Result "0-1"]
[WhiteElo "1277"]
[BlackElo "1600"]
[TimeControl "300"]
[EndTime "6:36:47 PDT"]
[Termination "Duke_of_Bebington won by resignation"]

1. c4 {[%clk 0:04:53.7]} 1... c6 {[%clk 0:04:58.5]} 2. Nc3 {[%clk 0:04:52.7]}
2... d5 {[%clk 0:04:57.4]} 3. cxd5 {[%clk 0:04:51.1]} 3... cxd5 {[%clk
0:04:56.4]} 4. d4 {[%clk 0:04:50.2]} 4... e5 {[%clk 0:04:55.7]} 5. e3 {[%clk
0:04:48.8]} 5... exd4 {[%clk 0:04:43.5]} 6. Qxd4 {[%clk 0:04:45.4]} 6... Nf6
{[%clk 0:04:42.4]} 7. Nf3 {[%clk 0:04:42.5]} 7... Nc6 {[%clk 0:04:40.4]} 8. Bb5
{[%clk 0:04:37.1]} 8... Bd7 {[%clk 0:04:37]} 9. Bxc6 {[%clk 0:04:30.8]} 9...
Bxc6 {[%clk 0:04:34.4]} 10. O-O {[%clk 0:04:25.5]} 10... Be7 {[%clk 0:04:30.3]}
11. Ne5 {[%clk 0:04:20.9]} 11... O-O {[%clk 0:04:29.3]} 12. Nxc6 {[%clk
0:04:13.7]} 12... bxc6 {[%clk 0:04:29.2]} 13. Bd2 {[%clk 0:04:08.9]} 13... Qb6
{[%clk 0:04:22.8]} 14. Qxb6 {[%clk 0:04:01.3]} 14... axb6 {[%clk 0:04:22.7]} 15.
b3 {[%clk 0:03:59.7]} 15... Bb4 {[%clk 0:04:05.8]} 16. Rfc1 {[%clk 0:03:55.9]}
16... c5 {[%clk 0:03:59.3]} 17. Be1 {[%clk 0:03:53.8]} 17... Rfe8 {[%clk
0:03:56.2]} 18. Na4 {[%clk 0:03:47.5]} 18... Bxe1 {[%clk 0:03:49.8]} 19. Rxe1
{[%clk 0:03:43.3]} 19... Rab8 {[%clk 0:03:45.5]} 20. Rec1 {[%clk 0:03:40.2]}
20... Ne4 {[%clk 0:03:44.3]} 21. h3 {[%clk 0:03:28.1]} 21... Rec8 {[%clk
0:03:37.4]} 22. f3 {[%clk 0:03:19.8]} 22... Nd6 {[%clk 0:03:30.7]} 23. Rc2
{[%clk 0:03:11.7]} 23... Nb5 {[%clk 0:03:28.1]} 24. Rac1 {[%clk 0:03:03.1]}
24... d4 {[%clk 0:03:21.5]} 25. exd4 {[%clk 0:03:00.8]} 25... Nxd4 {[%clk
0:03:20.4]} 26. Rf2 {[%clk 0:02:51.6]} 26... Re8 {[%clk 0:03:08.7]} 27. Kh2
{[%clk 0:02:47.9]} 27... Re6 {[%clk 0:03:02.9]} 28. Nc3 {[%clk 0:02:43.3]} 28...
Rbe8 {[%clk 0:02:51.1]} 29. Ne4 {[%clk 0:02:40.6]} 29... f5 {[%clk 0:02:46.4]}
30. Ng5 {[%clk 0:02:32.9]} 30... Re2 {[%clk 0:02:42.7]} 31. Rxe2 {[%clk
0:02:27.5]} 31... Rxe2 {[%clk 0:02:41.4]} 32. h4 {[%clk 0:02:22.5]} 32... Rxa2
{[%clk 0:02:38.6]} 33. Re1 {[%clk 0:02:17.9]} 33... Kf8 {[%clk 0:02:34.8]} 34.
Re5 {[%clk 0:02:13.3]} 34... h6 {[%clk 0:02:25.1]} 35. Rd5 {[%clk 0:02:08.5]}
35... hxg5 {[%clk 0:02:20.6]} 36. hxg5 {[%clk 0:02:03.8]} 36... Nxf3+ {[%clk
0:02:17.1]} 37. Kg3 {[%clk 0:02:00.8]} 37... Nxg5 {[%clk 0:02:15.9]} 38. Rxf5+
{[%clk 0:01:58.1]} 38... Nf7 {[%clk 0:02:14.9]} 39. Rd5 {[%clk 0:01:52.3]} 39...
Ra3 {[%clk 0:02:12.1]} 40. Re5 {[%clk 0:01:32.1]} 40... Nxe5 {[%clk 0:02:10]}
0-1

[Event "Live Chess"]
[Site "Chess.com"]
[Date "2024.06.02"]
[Round "-"]
[White "MagnersCarlsberg2870"]
[Black "missedJariChance"]
[Result "1-0"]
[WhiteElo "1770"]
[BlackElo "1384"]
[TimeControl "300"]
[EndTime "6:36:48 PDT"]
[Termination "MagnersCarlsberg2870 won by checkmate"]

1. d4 {[%clk 0:04:57.6]} 1... d5 {[%clk 0:04:56.8]} 2. Bf4 {[%clk 0:04:56.2]}
2... c5 {[%clk 0:04:54]} 3. e3 {[%clk 0:04:55.1]} 3... e6 {[%clk 0:04:53.1]} 4.
Nd2 {[%clk 0:04:53.8]} 4... Bd6 {[%clk 0:04:51.7]} 5. Bg3 {[%clk 0:04:52.4]}
5... Nc6 {[%clk 0:04:49.8]} 6. c3 {[%clk 0:04:51]} 6... Nf6 {[%clk 0:04:46.1]}
7. Bd3 {[%clk 0:04:50]} 7... O-O {[%clk 0:04:42.4]} 8. Ngf3 {[%clk 0:04:48.9]}
8... Re8 {[%clk 0:04:40.1]} 9. Ne5 {[%clk 0:04:47.3]} 9... a6 {[%clk 0:04:21]}
10. a4 {[%clk 0:04:44.1]} 10... cxd4 {[%clk 0:04:19.2]} 11. exd4 {[%clk
0:04:42.8]} 11... Qc7 {[%clk 0:04:12.3]} 12. f4 {[%clk 0:04:41.5]} 12... h6
{[%clk 0:04:04.6]} 13. Bf2 {[%clk 0:04:39.9]} 13... Na5 {[%clk 0:03:53.9]} 14.
g4 {[%clk 0:04:38.4]} 14... Nd7 {[%clk 0:03:23]} 15. g5 {[%clk 0:04:36.5]} 15...
Nxe5 {[%clk 0:03:13.8]} 16. fxe5 {[%clk 0:04:35.6]} 16... Be7 {[%clk 0:03:10.4]}
17. gxh6 {[%clk 0:04:32.7]} 17... g6 {[%clk 0:03:08.9]} 18. Rg1 {[%clk
0:04:29.5]} 18... Nc6 {[%clk 0:03:01.5]} 19. Qh5 {[%clk 0:04:27.7]} 19... Bf8
{[%clk 0:02:55.2]} 20. Bh4 {[%clk 0:04:14.6]} 20... Kh7 {[%clk 0:02:48.3]} 21.
Bxg6+ {[%clk 0:04:10.9]} 21... fxg6 {[%clk 0:02:43.5]} 22. Qxg6+ {[%clk
0:04:09.9]} 22... Kh8 {[%clk 0:02:42]} 23. Bf6+ {[%clk 0:04:08.9]} 23... Qg7
{[%clk 0:02:35.3]} 24. Bxg7+ {[%clk 0:04:06.9]} 24... Bxg7 {[%clk 0:02:33]} 25.
Qxg7# {[%clk 0:04:06.1]} 1-0

[Event "Live Chess"]
[Site "Chess.com"]
[Date "2024.06.02"]
[Round "-"]
[White "elephantgerrald"]
[Black "dmitro74"]
[Result "0-1"]
[WhiteElo "871"]
[BlackElo "1734"]
[TimeControl "300"]
[EndTime "6:36:54 PDT"]
[Termination "dmitro74 won on time"]

1. e4 {[%clk 0:04:58.6]} 1... e6 {[%clk 0:04:58.9]} 2. d4 {[%clk 0:04:56.5]}
2... d5 {[%clk 0:04:58.3]} 3. e5 {[%clk 0:04:55.8]} 3... c5 {[%clk 0:04:57.3]}
4. dxc5 {[%clk 0:04:54.4]} 4... Bxc5 {[%clk 0:04:56]} 5. Nf3 {[%clk 0:04:53.6]}
5... Qb6 {[%clk 0:04:52.9]} 6. Nc3 {[%clk 0:04:32.8]} 6... Bxf2+ {[%clk
0:04:50.1]} 7. Ke2 {[%clk 0:04:29.7]} 7... Bd7 {[%clk 0:04:46.5]} 8. Qd3 {[%clk
0:04:04.1]} 8... Ne7 {[%clk 0:04:39.5]} 9. Be3 {[%clk 0:03:23.7]} 9... Bxe3
{[%clk 0:04:37.5]} 10. Qxe3 {[%clk 0:03:22.5]} 10... Qxe3+ {[%clk 0:04:35.9]}
11. Kxe3 {[%clk 0:03:21.6]} 11... Nf5+ {[%clk 0:04:34.6]} 12. Kf2 {[%clk
0:03:06.8]} 12... a6 {[%clk 0:04:32.6]} 13. Kg1 {[%clk 0:02:42.6]} 13... Nc6
{[%clk 0:04:28.8]} 14. Ng5 {[%clk 0:02:39.8]} 14... h6 {[%clk 0:04:24.2]} 15.
Nf3 {[%clk 0:02:23.3]} 15... Ncd4 {[%clk 0:04:18.1]} 0-1

[Event "Live Chess"]
[Site "Chess.com"]
[Date "2024.06.02"]
[Round "-"]
[White "gobbles19"]
[Black "Ksenia_2013"]
[Result "1-0"]
[WhiteElo "2213"]
[BlackElo "967"]
[TimeControl "300"]
[EndTime "6:36:58 PDT"]
[Termination "gobbles19 won by checkmate"]

1. e4 {[%clk 0:04:57.6]} 1... e5 {[%clk 0:04:58.2]} 2. d4 {[%clk 0:04:56.9]}
2... Bd6 {[%clk 0:04:54.4]} 3. Bc4 {[%clk 0:04:54.8]} 3... Nf6 {[%clk
0:04:51.6]} 4. dxe5 {[%clk 0:04:53.1]} 4... Nxe4 {[%clk 0:04:49.9]} 5. exd6
{[%clk 0:04:44.3]} 5... cxd6 {[%clk 0:04:47.4]} 6. Bxf7+ {[%clk 0:04:39.8]} 6...
Kxf7 {[%clk 0:04:42.3]} 7. Qd5+ {[%clk 0:04:38]} 7... Ke8 {[%clk 0:04:37.2]} 8.
Qxe4+ {[%clk 0:04:37.1]} 8... Kf8 {[%clk 0:04:35.5]} 9. Nf3 {[%clk 0:04:34.3]}
9... Kf7 {[%clk 0:04:33.6]} 10. O-O {[%clk 0:04:32.3]} 10... Re8 {[%clk
0:04:30.2]} 11. Qd5+ {[%clk 0:04:31.5]} 11... Kf8 {[%clk 0:04:28.6]} 12. Ng5
{[%clk 0:04:30.7]} 12... Nc6 {[%clk 0:04:23.5]} 13. Nxh7+ {[%clk 0:04:29.7]}
13... Ke7 {[%clk 0:04:18.5]} 14. Bg5# {[%clk 0:04:29.6]} 1-0